fUSD/lending_fUSD_20250826
["ID","MTS","AMOUNT","RATE_DAILY","PERIOD"]
[381508796,1756241480616,-559.21,0.00027397,5]
[381508797,1756241480625,-559.21,0.00027397,5]
[381508798,1756241480635,-559.21,0.00027397,5]
[381508799,1756241480644,-559.37893407,0.00027397,5]
[381508800,1756241480657,-400.0,0.00027397,5]
[381508801,1756241480667,-400.0,0.00027397,5]
[381508802,1756241480676,-743.17,0.00027397,5]
[381508803,1756241480686,-400.0,0.00027397,5]
[381508804,1756241480696,-526.09,0.00027397,5]
[381508805,1756241480705,-1065.78,0.00027397,5]
[381508806,1756241480714,-500.0,0.00027397,5]
[381508807,1756241480725,-1318.56,0.00027397,5]
[381508808,1756241480735,-500.0,0.00027397,5]
[381508809,1756241480747,-150.0,0.00027397,5]
[381508810,1756241480756,-1259.46,0.00027397,5]
[381508811,1756241480765,-876.48,0.00027397,5]
[381508812,1756241480775,-949.19,0.00027397,5]
[381508813,1756241480910,-509.97265723,0.00027397,5]
[381508814,1756241480919,-780.54,0.00027397,5]
[381508815,1756241480929,-887.85,0.00027397,5]
[381508816,1756241480938,-1414.96,0.00027397,5]
[381508817,1756241480947,-400.0,0.00027397,5]
[381508818,1756241480956,-671.05,0.00027397,5]
[381508819,1756241480965,-400.0,0.00027397,5]
[381508820,1756241480974,-400.0,0.00027397,5]
[381508821,1756241480983,-490.0,0.00027397,5]
[381508822,1756241480992,-1547.69,0.00027397,5]
[381508823,1756241481002,-400.0,0.00027397,5]
[381508824,1756241481012,-400.0,0.00027397,5]
[381508825,1756241481021,-400.0,0.00027397,5]
[381508826,1756241481031,-400.0,0.00027397,5]
[381508827,1756241481041,-400.0,0.00027397,5]
[381508828,1756241481052,-512.39,0.00027397,5]
[381508829,1756241481061,-400.0,0.00027397,5]
[381508830,1756241481071,-400.0,0.00027397,5]
[381508831,1756241481080,-400.0,0.00027397,5]
[381508832,1756241481090,-400.0,0.00027397,5]
[381508833,1756241481099,-1535.62,0.00027397,5]
[381508834,1756241481108,-1559.06,0.00027397,5]
[381508835,1756241481118,-400.0,0.00027397,5]
[381508836,1756241481127,-1251.31,0.00027397,5]
[381508837,1756241481137,-400.0,0.00027397,5]
[381508838,1756241481146,-400.0,0.00027397,5]
[381508839,1756241481155,-653.35,0.00027397,5]
[381508840,1756241481164,-400.0,0.00027397,5]
[381508841,1756241481173,-400.0,0.00027397,5]
[381508842,1756241481182,-1133.36,0.00027397,5]
[381508843,1756241481191,-400.0,0.00027397,5]
[381508844,1756241481200,-2362.46,0.00027397,5]
[381508845,1756241481209,-400.0,0.00027397,5]
[381508846,1756241481219,-400.0,0.00027397,5]
[381508847,1756241481228,-400.0,0.00027397,5]
[381508848,1756241481237,-400.0,0.00027397,5]
[381508849,1756241481246,-1339.79,0.00027397,5]
[381508850,1756241481256,-594.75,0.00027397,5]
[381508851,1756241481265,-400.0,0.00027397,5]
[381508852,1756241481275,-1103.35,0.00027397,5]
[381508853,1756241481285,-980.8,0.00027397,5]
[381508854,1756241481294,-522.18,0.00027397,5]
[381508855,1756241481303,-400.0,0.00027397,5]
[381508856,1756241481312,-1150.82,0.00027397,5]
[381508857,1756241481324,-400.0,0.00027397,5]
[381508858,1756241481334,-873.8,0.00027397,5]
[381508859,1756241481343,-736.52,0.00027397,5]
[381508860,1756241481353,-400.0,0.00027397,5]
[381508861,1756241481362,-400.0,0.00027397,5]
[381508862,1756241481371,-1186.05,0.00027397,5]
[381508863,1756241481380,-400.0,0.00027397,5]
[381508864,1756241481390,-400.0,0.00027397,5]
[381508865,1756241481399,-400.0,0.00027397,5]
[381508866,1756241481409,-400.0,0.00027397,5]
[381508867,1756241481418,-838.5,0.00027397,5]
[381508868,1756241481427,-400.0,0.00027397,5]
[381508869,1756241481436,-400.0,0.00027397,5]
[381508870,1756241481445,-1194.72,0.00027397,5]
[381508871,1756241481454,-1613.82,0.00027397,5]
[381508872,1756241481463,-476.16,0.00027397,5]
[381508873,1756241481472,-476.24,0.00027397,5]
[381508874,1756241481481,-709.35,0.00027397,5]
[381508875,1756241481490,-1076.09,0.00027397,5]
[381508876,1756241481499,-400.0,0.00027397,5]
[381508877,1756241481508,-403.6470792,0.00027397,5]
[381508878,1756241481517,-400.0,0.00027397,5]
[381508879,1756241481526,-400.0,0.00027397,5]
[381508880,1756241481536,-400.0,0.00027397,5]
[381508881,1756241481545,-500.0,0.00027397,5]
[381508882,1756241481554,-500.0,0.00027397,5]
[381508883,1756241481563,-500.0,0.00027397,5]
[381508884,1756241481574,-500.0,0.00027397,5]
[381508885,1756241481583,-400.0,0.00027397,5]
[381508886,1756241481593,-1039.54,0.00027397,5]
[381508887,1756241481603,-500.0,0.00027397,5]
[381508888,1756241481612,-500.0,0.00027397,5]
[381508889,1756241481622,-500.0,0.00027397,5]
[381508890,1756241481631,-400.0,0.00027397,5]
[381508891,1756241481643,-500.0,0.00027397,5]
[381508892,1756241481655,-500.0,0.00027397,5]
[381508893,1756241481664,-500.0,0.00027397,5]
[381508894,1756241481676,-500.0,0.00027397,5]
[381508895,1756241481688,-500.0,0.00027397,5]
[381508896,1756241481697,-500.0,0.00027397,5]
[381508897,1756241481707,-400.0,0.00027397,2]
[381508898,1756241481717,-500.0,0.00027397,5]
[381508899,1756241481727,-400.0,0.00027397,5]
[381508900,1756241481743,-403.49875738,0.00027397,5]
[381508901,1756241481752,-500.0,0.00027397,5]
[381508902,1756241481762,-1060.69,0.00027397,5]
[381508903,1756241481772,-500.0,0.00027397,5]
[381508904,1756241481782,-1278.48,0.00027397,5]
[381508905,1756241481791,-500.0,0.00027397,5]
[381508906,1756241481802,-500.0,0.00027397,5]
[381508907,1756241481812,-214.4,0.00027397,5]
[381508908,1756241481823,-1701.93,0.00027397,5]
[381508909,1756241481833,-544.88,0.00027397,5]
[381508910,1756241481843,-400.0,0.00027397,5]
[381508911,1756241481853,-461.88,0.00027397,5]
[381508912,1756241481867,-500.0,0.00027397,5]
[381508913,1756241481877,-500.0,0.00027397,5]
[381508914,1756241481887,-500.0,0.00027397,5]
[381508915,1756241481897,-500.0,0.00027397,5]
[381508916,1756241481906,-1109.3,0.00027397,5]
[381508917,1756241481917,-500.0,0.00027397,5]
[381508918,1756241481927,-400.0,0.00027397,5]
[381508919,1756241481937,-500.0,0.00027397,5]
[381508920,1756241481949,-400.0,0.00027397,5]
[381508921,1756241481959,-500.0,0.00027397,5]
[381508922,1756241481969,-500.0,0.00027397,5]
[381508923,1756241481980,-500.0,0.00027397,5]
[381508924,1756241481991,-500.0,0.00027397,5]
[381508925,1756241482000,-500.0,0.00027397,5]
[381508926,1756241482012,-279.38,0.00027397,5]
[381508927,1756241482023,-903.46,0.00027397,5]
[381508928,1756241482033,-400.0,0.00027397,5]
[381508929,1756241482045,-400.0,0.00027397,5]
[381508930,1756241482055,-400.0,0.00027397,5]
[381508931,1756241482065,-500.0,0.00027397,5]
[381508932,1756241482075,-480.0,0.00027397,5]
[381508933,1756241482085,-490.0,0.00027397,5]
[381508934,1756241482095,-400.0,0.00027397,5]
[381508935,1756241482105,-1446.06,0.00027397,5]
[381508936,1756241482115,-400.0,0.00027397,5]
[381508937,1756241482126,-400.0,0.00027397,5]
[381508938,1756241482136,-927.15,0.00027397,5]
[381508939,1756241482146,-449.99,0.00027397,5]
[381508940,1756241482155,-400.0,0.00027397,5]
[381508941,1756241482166,-1108.01,0.00027397,5]
[381508942,1756241482176,-400.0,0.00027397,5]
[381508943,1756241482186,-400.0,0.00027397,5]
[381508944,1756241482197,-419.09,0.00027397,5]
[381508945,1756241482207,-895.35,0.00027397,5]
[381508946,1756241482218,-981.22,0.00027397,5]
[381508947,1756241482228,-400.0,0.00027397,5]
[381508948,1756241482238,-400.0,0.00027397,5]
[381508949,1756241482248,-400.0,0.00027397,5]
[381508950,1756241482258,-452.45,0.00027397,5]
[381508951,1756241482269,-3766.32,0.00027397,5]
[381508952,1756241482281,-863.29,0.00027397,5]
[381508953,1756241482291,-400.0,0.00027397,5]
[381508954,1756241482302,-400.26030062,0.00027397,5]
[381508955,1756241482315,-1196.06,0.00027397,5]
[381508956,1756241482333,-465.1,0.00027397,5]
[381508957,1756241482344,-726.39,0.00027397,5]
[381508958,1756241482356,-382.28106278,0.00027397,5]
[381508959,1756241482367,-400.0,0.00027397,5]
[381508960,1756241482378,-400.0,0.00027397,5]
[381508961,1756241482388,-1057.01,0.00027397,5]
[381508962,1756241482399,-1043.85,0.00027397,5]
[381508963,1756241482411,-550.37,0.00027397,5]
[381508964,1756241482423,-1442.83,0.00027397,5]
[381508965,1756241482436,-724.05,0.00027397,5]
[381508966,1756241482447,-1108.15,0.00027397,5]
[381508967,1756241482458,-1302.26,0.00027397,5]
[381508968,1756241482468,-400.0,0.00027397,5]
[381508969,1756241482478,-490.0,0.00027397,5]
[381508970,1756241482489,-400.0,0.00027397,5]
[381508971,1756241482499,-400.0,0.00027397,5]
[381508972,1756241482510,-400.0,0.00027397,5]
[381508973,1756241482520,-400.0,0.00027397,5]
[381508974,1756241482531,-400.0,0.00027397,5]
[381508975,1756241482544,-400.0,0.00027397,5]
[381508976,1756241482566,-1602.59,0.00027397,5]
[381508977,1756241482588,-400.0,0.00027397,5]
[381508978,1756241482604,-513.25,0.00027397,5]
[381508979,1756241482616,-400.75507289,0.00027397,5]
[381508980,1756241482627,-1161.97,0.00027397,5]
[381508981,1756241482640,-400.0,0.00027397,5]
[381508982,1756241482654,-619.03,0.00027397,5]
[381508983,1756241482663,-400.0,0.00027397,5]
[381508984,1756241482674,-898.08,0.00027397,5]
[381508985,1756241482685,-1031.63,0.00027397,5]
[381508986,1756241482695,-400.0,0.00027397,5]
[381508987,1756241482705,-400.0,0.00027397,5]
[381508988,1756241482716,-400.0,0.00027397,5]
[381508989,1756241482726,-500.0,0.00027397,5]
[381508990,1756241482736,-500.0,0.00027397,5]
[381508991,1756241482746,-601.75,0.00027397,5]
[381508992,1756241482757,-213.06413843,0.00027397,5]
[381508993,1756241482767,-400.0,0.00027397,5]
[381508994,1756241482777,-665.32,0.00027397,5]
[381508995,1756241482787,-400.0,0.00027397,5]
[381508996,1756241482803,-462.67,0.00027397,5]
[381508997,1756241482823,-412.46,0.00027397,5]
[381508998,1756241482840,-500.0,0.00027397,5]
[381508999,1756241482859,-500.0,0.00027397,5]
[381509000,1756241482876,-500.0,0.00027397,5]
[381509001,1756241482892,-632.38,0.00027397,5]
[381509002,1756241482911,-500.0,0.00027397,5]
[381509003,1756241482932,-500.0,0.00027397,5]
[381509004,1756241482952,-400.0,0.00027397,5]
[381509005,1756241482970,-500.0,0.00027397,5]
[381509006,1756241482989,-500.0,0.00027397,5]
[381509007,1756241483006,-1081.36,0.00027397,5]
[381509008,1756241483021,-500.0,0.00027397,5]
[381509009,1756241483039,-506.61882349,0.00027397,5]
[381509010,1756241483057,-1012.0,0.00027397,5]
[381509011,1756241483073,-603.38,0.00027397,5]
[381509012,1756241483088,-1539.72,0.00027397,5]
[381509013,1756241483105,-941.11,0.00027397,5]
[381509014,1756241483121,-400.0,0.00027397,5]
[381509015,1756241483137,-1249.28,0.00027397,5]
[381509016,1756241483154,-5020.89371947,0.00027397,5]
[381509017,1756241483172,-400.0,0.00027397,5]
[381509018,1756241483188,-400.0,0.00027397,5]
[381509019,1756241483203,-605.99,0.00027397,5]
[381509020,1756241483218,-1357.5,0.00027397,5]
[381509021,1756241483233,-400.0,0.00027397,5]
[381509022,1756241483248,-898.18,0.00027397,5]
[381509023,1756241483265,-833.74,0.00027397,5]
[381509024,1756241483281,-400.0,0.00027397,5]
[381509025,1756241483297,-400.0,0.00027397,5]
[381509026,1756241483313,-400.0,0.00027397,5]
[381509027,1756241483327,-612.88,0.00027397,5]
[381509028,1756241483344,-810.06,0.00027397,5]
[381509029,1756241483359,-400.0,0.00027397,5]
[381509030,1756241483373,-477.95854434,0.00027397,5]
[381509031,1756241483388,-1427.98,0.00027397,5]
[381509032,1756241483404,-400.0,0.00027397,5]
[381509033,1756241483419,-400.0,0.00027397,5]
[381509034,1756241483433,-400.41215319,0.00027397,5]
[381509035,1756241483447,-856.12,0.00027397,5]
[381509036,1756241483461,-888.88,0.00027397,5]
[381509037,1756241483476,-400.0,0.00027397,5]
[381509038,1756241483490,-400.0,0.00027397,5]
[381509039,1756241483505,-1007.292766,0.00027397,5]
[381509040,1756241483520,-899.13,0.00027397,5]
[381509041,1756241483534,-1124.57,0.00027397,5]
[381509042,1756241483551,-469.26389706,0.00027397,5]
[381509043,1756241483565,-481.34,0.00027397,5]
[381509044,1756241483580,-400.0,0.00027397,5]
[381509045,1756241483595,-1028.9,0.00027397,5]
[381509046,1756241483609,-400.0,0.00027397,5]
[381509047,1756241483625,-490.0,0.00027397,5]
[381509048,1756241483642,-400.0,0.00027397,5]
[381509049,1756241483662,-400.0,0.00027397,5]
[381509050,1756241483679,-536.96,0.00027397,5]
[381509051,1756241483695,-965.59,0.00027397,5]
[381509052,1756241483712,-1454.97,0.00027397,5]
[381509053,1756241483728,-400.0,0.00027397,5]
[381509054,1756241483744,-643.97,0.00027397,5]
[381509055,1756241483758,-1082.39,0.00027397,5]
[381509056,1756241483780,-1176.37,0.00027397,5]
[381509057,1756241483811,-715.42,0.00027397,5]
[381509058,1756241483826,-583.29,0.00027397,5]
[381509059,1756241483841,-400.0,0.00027397,5]
[381509060,1756241483856,-400.0,0.00027397,5]
[381509061,1756241483873,-627.32,0.00027397,5]
[381509062,1756241483889,-852.32,0.00027397,5]
[381509063,1756241483904,-1051.04,0.00027397,5]
[381509064,1756241483920,-400.0,0.00027397,5]
[381509065,1756241483935,-400.0,0.00027397,5]
[381509066,1756241483951,-1259.85,0.00027397,5]
[381509067,1756241483968,-400.0,0.00027397,5]
[381509068,1756241483984,-848.91,0.00027397,5]
[381509069,1756241483999,-1256.33,0.00027397,5]
[381509070,1756241484016,-400.0,0.00027397,5]
[381509071,1756241484033,-1391.9,0.00027397,5]
[381509072,1756241484049,-400.0,0.00027397,5]
[381509073,1756241484065,-630.84,0.00027397,5]
[381509074,1756241484082,-678.84,0.00027397,5]
[381509075,1756241484098,-1112.03,0.00027397,5]
[381509076,1756241484113,-734.14,0.00027397,5]
[381509077,1756241484130,-900.59,0.00027397,5]
[381509078,1756241484145,-400.0,0.00027397,5]
[381509079,1756241484162,-400.0,0.00027397,5]
[381509080,1756241484177,-400.0,0.00027397,5]
[381509081,1756241484193,-734.29,0.00027397,5]
[381509082,1756241484209,-1055.56,0.00027397,5]
[381509083,1756241484225,-1238.35,0.00027397,5]
[381509084,1756241484240,-400.0,0.00027397,5]
[381509085,1756241484256,-627.84,0.00027397,5]
[381509086,1756241484272,-400.49604735,0.00027397,5]
[381509087,1756241484288,-436.99074026,0.00027397,5]
[381509088,1756241484304,-400.0,0.00027397,5]
[381509089,1756241484319,-400.0,0.00027397,5]
[381509090,1756241484335,-400.0,0.00027397,5]
[381509091,1756241484351,-841.62,0.00027397,5]
[381509092,1756241484367,-938.44,0.00027397,5]
[381509093,1756241484382,-400.0,0.00027397,5]
[381509094,1756241484396,-400.0,0.00027397,5]
[381509095,1756241484411,-400.0,0.00027397,5]
[381509096,1756241484427,-500.0,0.00027397,5]
[381509097,1756241484442,-400.0,0.00027397,5]
[381509098,1756241484457,-500.0,0.00027397,5]
[381509099,1756241484472,-400.0,0.00027397,5]
[381509100,1756241484487,-1441.05,0.00027397,5]
[381509101,1756241484501,-709.18,0.00027397,5]
[381509102,1756241484515,-400.0,0.00027397,5]
[381509103,1756241484530,-400.0,0.00027397,5]
[381509104,1756241484544,-687.78,0.00027397,5]
[381509105,1756241484560,-490.0,0.00027397,5]
[381509106,1756241484576,-400.0,0.00027397,5]
[381509107,1756241484590,-400.0,0.00027397,5]
[381509108,1756241484606,-400.11109624,0.00027397,5]
[381509109,1756241484622,-517.5,0.00027397,5]
[381509110,1756241484638,-400.0,0.00027397,5]
[381509111,1756241484656,-624.39,0.00027397,5]
[381509112,1756241484672,-400.0,0.00027397,5]
[381509113,1756241484687,-400.0,0.00027397,5]
[381509114,1756241484703,-837.2,0.00027397,5]
[381509115,1756241484719,-653.97,0.00027397,5]
[381509116,1756241484733,-400.0,0.00027397,5]
[381509117,1756241484748,-400.0,0.00027397,5]
[381509118,1756241484762,-400.0,0.00027397,5]
[381509119,1756241484778,-749.44,0.00027397,5]
[381509120,1756241484793,-500.0,0.00027397,5]
[381509121,1756241484808,-500.0,0.00027397,5]
[381509122,1756241484825,-504.69051863,0.00027397,5]
[381509123,1756241484839,-400.0,0.00027397,5]
[381509124,1756241484855,-900.98,0.00027397,5]
[381509125,1756241484871,-535.64,0.00027397,5]
[381509126,1756241484887,-1718.21,0.00027397,5]
[381509127,1756241484903,-1229.31,0.00027397,5]
[381509128,1756241484918,-400.0,0.00027397,5]
[381509129,1756241484934,-900.97,0.00027397,5]
[381509130,1756241484950,-400.0,0.00027397,5]
[381509131,1756241484965,-400.0,0.00027397,5]
[381509132,1756241484981,-779.83,0.00027397,5]
[381509133,1756241484996,-401.34238162,0.00027397,5]
[381509134,1756241485013,-659.08,0.00027397,5]
[381509135,1756241485029,-616.16,0.00027397,5]
[381509136,1756241485046,-400.0,0.00027397,5]
[381509137,1756241485062,-491.04,0.00027397,5]
[381509138,1756241485079,-1259.01,0.00027397,5]
[381509139,1756241485094,-404.2085028,0.00027397,5]
[381509140,1756241485109,-500.0,0.00027397,5]
[381509141,1756241485124,-1472.7,0.00027397,5]
[381509142,1756241485139,-500.0,0.00027397,5]
[381509143,1756241485153,-6220.52,0.00027397,5]
[381509144,1756241485169,-400.0,0.00027397,5]
[381509145,1756241485184,-400.0,0.00027397,5]
[381509146,1756241485199,-400.0,0.00027397,5]
[381509147,1756241485214,-400.0,0.00027397,5]
[381509148,1756241485228,-400.0,0.00027397,5]
[381509149,1756241485242,-490.0,0.00027397,5]
[381509150,1756241485257,-643.63,0.00027397,5]
[381509151,1756241485272,-400.0,0.00027397,5]
[381509152,1756241485287,-400.0,0.00027397,5]
[381509153,1756241485302,-400.0,0.00027397,5]
[381509154,1756241485317,-2007.19,0.00027397,5]
[381509155,1756241485330,-403.76953701,0.00027397,5]
[381509156,1756241485345,-420.19,0.00027397,5]
[381509157,1756241485359,-400.0,0.00027397,5]
[381509158,1756241485374,-400.0,0.00027397,5]
[381509159,1756241485388,-676.7,0.00027397,5]
[381509160,1756241485403,-643.98,0.00027397,5]
[381509161,1756241485417,-400.0,0.00027397,5]
[381509162,1756241485432,-1054.44,0.00027397,5]
[381509163,1756241485447,-400.0,0.00027397,5]
[381509164,1756241485461,-1051.83,0.00027397,5]
[381509165,1756241485475,-1056.1,0.00027397,5]
[381509166,1756241485491,-400.0,0.00027397,5]
[381509167,1756241485507,-400.0,0.00027397,5]
[381509168,1756241485523,-400.0,0.00027397,5]
[381509169,1756241485538,-400.0,0.00027397,5]
[381509170,1756241485549,-400.0,0.00027397,5]
[381509171,1756241485558,-400.0,0.00027397,5]
[381509172,1756241485567,-400.0,0.00027397,5]
[381509173,1756241485577,-400.0,0.00027397,5]
[381509174,1756241485586,-1267.72,0.00027397,5]
[381509175,1756241485596,-400.0,0.00027397,5]
[381509176,1756241485605,-500.0,0.00027397,5]
[381509177,1756241485614,-543.47,0.00027397,5]
[381509178,1756241485623,-500.0,0.00027397,5]
[381509179,1756241485632,-400.0,0.00027397,5]
[381509180,1756241485643,-500.0,0.00027397,5]
[381509181,1756241485655,-400.0,0.00027397,5]
[381509182,1756241485664,-999.8,0.00027397,5]
[381509183,1756241485674,-500.0,0.00027397,5]
[381509184,1756241485683,-500.0,0.00027397,5]
[381509185,1756241485694,-500.0,0.00027397,5]
[381509186,1756241486221,-733.94,0.00027397,5]
[381509187,1756241486255,-500.0,0.00027397,5]
[381509188,1756241486292,-424.81,0.00027397,5]
[381509189,1756241486314,-1020.36,0.00027397,5]
[381509190,1756241486322,-400.0,0.00027397,5]
[381509191,1756241486332,-400.0,0.00027397,5]
[381509192,1756241486341,-500.0,0.00027397,5]
[381509193,1756241486350,-500.0,0.00027397,5]
[381509194,1756241486359,-500.0,0.00027397,5]
[381509195,1756241486368,-462.12,0.00027397,5]
[381509196,1756241486377,-400.0,0.00027397,5]
[381509197,1756241486387,-490.0,0.00027397,5]
[381509198,1756241486396,-400.0,0.00027397,5]
[381509199,1756241486405,-632.12,0.00027397,5]
[381509200,1756241486414,-1257.56,0.00027397,5]
[381509201,1756241486423,-684.21,0.00027397,5]
[381509202,1756241486432,-1051.73,0.00027397,5]
[381509203,1756241486441,-400.0,0.00027397,5]
[381509204,1756241486451,-427.42,0.00027397,5]
[381509205,1756241486460,-400.0,0.00027397,5]
[381509206,1756241486470,-872.72,0.00027397,5]
[381509207,1756241486479,-400.0,0.00027397,5]
[381509208,1756241486488,-1314.39,0.00027397,5]
[381509209,1756241486497,-1433.18,0.00027397,5]
[381509210,1756241486506,-400.0,0.00027397,5]
[381509211,1756241486515,-1106.48,0.00027397,5]
[381509212,1756241486525,-552.16711988,0.00027397,5]
[381509213,1756241486534,-400.0,0.00027397,5]
[381509214,1756241486543,-1135.85,0.00027397,5]
[381509215,1756241486553,-400.0,0.00027397,5]
[381509216,1756241486562,-480.26,0.00027397,5]
[381509217,1756241486572,-533.82,0.00027397,5]
[381509218,1756241486581,-400.0,0.00027397,5]
[381509219,1756241486591,-400.0,0.00027397,5]
[381509220,1756241486600,-531.08,0.00027397,5]
[381509221,1756241486609,-400.0,0.00027397,5]
[381509222,1756241486618,-490.0,0.00027397,5]
[381509223,1756241486627,-697.45,0.00027397,5]
[381509224,1756241486637,-400.0,0.00027397,5]
[381509225,1756241486650,-400.0,0.00027397,5]
[381509226,1756241486660,-1372.17,0.00027397,5]
[381509227,1756241486669,-400.0,0.00027397,5]
[381509228,1756241486679,-400.0,0.00027397,5]
[381509229,1756241486689,-422.98,0.00027397,5]
[381509230,1756241486698,-400.0,0.00027397,5]
[381509231,1756241486708,-400.0,0.00027397,5]
[381509232,1756241486717,-400.0,0.00027397,5]
[381509233,1756241486727,-400.0,0.00027397,5]
[381509234,1756241486737,-943.45,0.00027397,5]
[381509235,1756241486746,-466.03,0.00027397,5]
[381509236,1756241486755,-413.75,0.00027397,5]
[381509237,1756241486765,-400.0,0.00027397,5]
[381509238,1756241486774,-639.54,0.00027397,5]
[381509239,1756241486783,-400.0,0.00027397,5]
[381509240,1756241486792,-506.68,0.00027397,5]
[381509241,1756241486802,-1447.7,0.00027397,5]
[381509242,1756241486811,-395.42941929,0.00027397,5]
[381509243,1756241486820,-597.05,0.00027397,5]
[381509244,1756241486830,-421.34,0.00027397,5]
[381509245,1756241486839,-1200.97,0.00027397,5]
[381509246,1756241486848,-557.8,0.00027397,5]
[381509247,1756241486857,-721.4,0.00027397,5]
[381509248,1756241486867,-1078.08,0.00027397,5]
[381509249,1756241486876,-400.0,0.00027397,5]
[381509250,1756241486886,-439.92,0.00027397,5]
[381509251,1756241486895,-400.0,0.00027397,5]
[381509252,1756241486904,-400.0,0.00027397,5]
[381509253,1756241486913,-400.0,0.00027397,5]
[381509254,1756241486922,-445.72,0.00027397,5]
[381509255,1756241486931,-680.37,0.00027397,5]
[381509256,1756241486940,-490.0,0.00027397,5]
[381509257,1756241486949,-400.0,0.00027397,5]
[381509258,1756241486959,-490.0,0.00027397,5]
[381509259,1756241486968,-400.0,0.00027397,5]
[381509260,1756241486977,-400.89979671,0.00027397,5]
[381509261,1756241486986,-400.0,0.00027397,5]
[381509262,1756241486996,-400.57507897,0.00027397,5]
[381509263,1756241487005,-470.01,0.00027397,5]
[381509264,1756241487014,-582.67,0.00027397,5]
[381509265,1756241487024,-435.39,0.00027397,5]
[381509266,1756241487033,-400.5848031,0.00027397,5]
[381509267,1756241487042,-413.89,0.00027397,5]
[381509268,1756241487051,-1250.64,0.00027397,5]
[381509269,1756241487060,-400.0,0.00027397,5]
[381509270,1756241487069,-4222.37,0.00027397,5]
[381509271,1756241487078,-400.0,0.00027397,5]
[381509272,1756241487087,-772.81,0.00027397,5]
[381509273,1756241487095,-400.0,0.00027397,5]
[381509274,1756241487105,-713.79,0.00027397,5]
[381509275,1756241487113,-400.0,0.00027397,5]
[381509276,1756241487123,-1123.12,0.00027397,5]
[381509277,1756241487132,-400.0,0.00027397,5]
[381509278,1756241487141,-740.5,0.00027397,5]
[381509279,1756241487151,-400.0,0.00027397,5]
[381509280,1756241487160,-1234.67,0.00027397,5]
[381509281,1756241487172,-4885.23,0.00027397,5]
[381509282,1756241487181,-400.0,0.00027397,5]
[381509283,1756241487190,-400.0,0.00027397,5]
[381509284,1756241487199,-400.0,0.00027397,5]
[381509285,1756241487208,-400.0,0.00027397,5]
[381509286,1756241487217,-400.0,0.00027397,5]
[381509287,1756241487227,-400.0,0.00027397,5]
[381509288,1756241487236,-1163.75,0.00027397,5]
[381509289,1756241487246,-769.52,0.00027397,5]
[381509290,1756241487255,-993.99,0.00027397,5]
[381509291,1756241487264,-1385.26,0.00027397,5]
[381509292,1756241487273,-400.0,0.00027397,5]
[381509293,1756241487282,-501.21427448,0.00027397,5]
[381509294,1756241487291,-400.0,0.00027397,5]
[381509295,1756241487300,-400.0,0.00027397,5]